bitfinex-derivatives/quotes_BNBF0:USTF0_20250807
["timestamp","ask_amount","ask_price","bid_price","bid_amount"]
[1754575183636,1.099,776.74,776.06,0.86518981]
[1754575184335,1.099,776.74,776.02,0.86518981]
[1754575188142,1.099,776.74,776.03,0.86518981]
[1754575191641,1.099,776.74,776.04,0.86518981]
[1754575193242,1.099,776.74,776.05,0.86518981]
[1754575194346,1.099,776.74,776.12,0.86518981]
[1754575195243,1.099,776.74,776.13,0.86518981]
[1754575195446,1.099,776.74,776.1,0.86518981]
[1754575197245,1.099,776.74,776.11,0.86518981]
[1754575197845,1.099,776.74,776.13,0.86518981]
[1754575199447,1.099,776.74,776.13,0.86626856]
[1754575200247,1.099,776.74,775.09,2.886511]
[1754575200248,1.099,776.74,776.14,0.86626856]
[1754575200848,1.099,776.74,775.1,2.886511]
[1754575200849,1.099,776.74,776.15,0.86626856]
[1754575201054,1.099,776.74,776.21,0.86626856]
[1754575201849,1.099,776.74,776.23,0.86626856]
[1754575203653,1.099,776.74,776.24,0.86626856]
[1754575203854,1.099,776.74,776.23,0.86626856]
[1754575205256,1.099,776.74,776.24,0.86626856]
[1754575205557,1.099,776.74,776.23,0.86626856]
[1754575205753,1.099,776.74,776.24,0.86626856]
[1754575207055,1.099,776.74,776.23,0.86626856]
[1754575207459,1.099,776.74,776.24,0.86626856]
[1754575208155,1.099,776.74,776.25,0.86626856]
[1754575208355,1.099,776.74,776.26,0.86626856]
[1754575209355,1.099,776.74,776.27,0.86626856]
[1754575210559,1.099,776.74,776.26,0.86626856]
[1754575211358,1.099,776.74,776.25,0.86626856]
[1754575212060,0.8662701,776.97,776.25,0.86626856]
[1754575212257,0.83392395,776.96,776.25,0.86626856]
[1754575212455,0.83392395,776.95,776.24,0.86626856]
[1754575212660,0.83392395,776.94,776.24,0.86626856]
[1754575212860,0.83392395,776.93,776.24,0.86626856]
[1754575213160,0.83392395,776.92,776.24,0.86626856]
[1754575213460,0.83382665,776.91,776.23,0.86626856]
[1754575213656,0.83382665,776.9,776.23,0.86626856]
[1754575213854,0.83383291,776.89,776.24,0.86626856]
[1754575214056,0.83383291,776.88,776.24,0.86626856]
[1754575214357,1.83383291,776.87,776.23,0.86626856]
[1754575214556,1.0,776.87,776.22,0.86626856]
[1754575215758,1.0,776.87,776.21,0.86626856]
[1754575217460,1.0,776.87,775.75,0.22404347]
[1754575217461,1.0,776.87,776.2,0.86626856]
[1754575217961,1.0,776.87,776.21,0.86626856]
[1754575218358,1.0,776.87,776.2,0.86626856]
[1754575218659,1.0,776.87,776.19,0.86626856]
[1754575220065,1.0,776.87,776.2,0.86626856]
[1754575221060,1.0,776.87,776.21,0.86626856]
[1754575221760,1.0,776.87,776.22,0.86626856]
[1754575222564,0.83337182,776.86,776.22,0.86626856]
[1754575222768,0.83337182,776.85,776.2,0.86626856]
[1754575222964,1.0,776.87,776.14,0.86626856]
[1754575223167,0.83336794,776.86,776.11,0.86626856]
[1754575223366,0.83336794,776.86,776.12,0.86626856]
[1754575224368,0.83336794,776.86,776.11,0.86626856]
[1754575224772,0.83336794,776.86,776.08,0.86626856]
[1754575224971,0.83336794,776.86,776.05,0.86626856]
[1754575225170,0.83336794,776.86,776.06,0.86626856]
[1754575225671,0.83336794,776.86,776.05,0.86626856]
[1754575226271,0.83336794,776.86,775.75,0.22404347]
[1754575226272,0.83336794,776.86,776.06,0.86626856]
[1754575226571,0.83336794,776.86,776.05,0.86626856]
[1754575227473,0.83336794,776.86,776.06,0.86626856]
[1754575227670,0.83336794,776.86,776.08,0.86626856]
[1754575228069,0.8662701,776.81,776.12,0.86626856]
[1754575228373,0.83336794,776.8,776.11,0.86626856]
[1754575228569,0.8662701,776.82,776.11,0.86626856]
[1754575228570,0.83336794,776.79,776.11,0.86626856]
[1754575228771,0.83336794,776.78,776.11,0.86626856]
[1754575228974,0.83336794,776.77,776.11,0.86626856]
[1754575229175,0.83336794,776.76,776.11,0.86626856]
[1754575229372,0.83336794,776.75,776.11,0.86626856]
[1754575229572,0.83336794,776.74,776.13,0.86626856]
[1754575229771,0.8662701,776.79,776.13,0.86626856]
[1754575229772,0.83336794,776.73,776.13,0.86626856]
[1754575229975,0.83336794,776.72,776.14,0.86626856]
[1754575230175,0.83336794,776.71,776.15,0.86626856]
[1754575230374,0.83336794,776.7,776.15,0.86626856]
[1754575230571,0.8662701,776.81,776.12,0.86626856]
[1754575230876,0.8335714,776.8,776.12,0.86626856]
[1754575231173,0.8335714,776.79,776.12,0.86626856]
[1754575231375,0.83361484,776.78,776.12,0.86626856]
[1754575231574,0.83361484,776.77,776.12,0.86626856]
[1754575231771,0.83361484,776.76,776.15,0.86626856]
[1754575232070,0.83361484,776.75,776.15,0.86626856]
[1754575232274,0.83361484,776.75,775.87,1.72564195]
[1754575232275,0.83361484,776.74,776.14,0.86626856]
[1754575232473,0.83361484,776.73,776.14,0.86626856]
[1754575232674,0.83361484,776.72,776.14,0.86626856]
[1754575232876,0.83361484,776.71,776.13,0.86626856]
[1754575233076,0.8662701,776.82,776.14,0.86626856]
[1754575233275,0.83369291,776.81,776.15,0.86626856]
[1754575233476,0.83369291,776.8,776.14,0.86626856]
[1754575233676,0.83369291,776.79,776.14,0.86626856]
[1754575233971,0.83369291,776.78,776.14,0.86626856]
[1754575234276,0.83369291,776.77,776.14,0.86626856]
[1754575234571,0.83369291,776.76,776.14,0.86626856]
[1754575234770,0.83369291,776.75,776.14,0.86626856]
[1754575234971,0.83369291,776.74,776.13,0.86626856]
[1754575235177,0.8662701,776.84,776.13,0.86626856]
[1754575235377,0.83381919,776.83,776.13,0.86626856]
[1754575235574,0.83381919,776.82,776.13,0.86626856]
[1754575235773,0.83381919,776.81,776.13,0.86626856]
[1754575235974,0.83381919,776.8,776.13,0.86626856]
[1754575236174,0.83381919,776.79,776.11,0.86626856]
[1754575236374,0.83381919,776.78,776.12,0.86626856]
[1754575236575,0.83381919,776.77,776.12,0.86626856]
[1754575236777,0.83381919,776.76,776.11,0.86626856]
[1754575236980,0.8662701,776.86,776.12,0.86626856]
[1754575237178,0.83388804,776.85,776.11,0.86626856]
[1754575237380,0.83388804,776.84,776.11,0.86626856]
[1754575237582,0.83388804,776.83,776.11,0.86626856]
[1754575237781,0.83388804,776.82,776.11,0.86626856]
[1754575238081,0.83388804,776.81,776.11,0.86626856]
[1754575238378,0.83388804,776.8,776.11,0.86626856]
[1754575238677,0.83388804,776.79,776.11,0.86626856]
[1754575238878,0.83388804,776.78,776.11,0.86626856]
[1754575239078,0.83388804,776.77,776.12,0.86626856]
[1754575239282,0.83388804,776.76,776.12,0.86626856]
[1754575239482,0.83388804,776.75,776.12,0.86626856]
[1754575239784,0.8662701,776.86,776.12,0.86626856]
[1754575239983,0.83405966,776.85,776.12,0.86626856]
[1754575240183,0.83405966,776.84,776.12,0.86626856]
[1754575240386,0.83405966,776.83,776.13,0.86626856]
[1754575240581,0.8662701,776.79,776.13,0.86626856]
[1754575240880,0.83405966,776.78,776.13,0.86626856]
[1754575241580,0.8662701,776.79,776.13,0.86626856]
[1754575241783,0.8341864,776.78,776.13,0.86626856]
[1754575241985,0.8341864,776.77,776.13,0.86626856]
[1754575242183,1.0,776.87,776.14,0.86626856]
[1754575242184,0.8662701,776.78,776.14,0.86626856]
[1754575242483,0.83421249,776.77,776.15,0.86626856]
[1754575242679,0.83421249,776.76,776.14,0.86626856]
[1754575242879,0.83421249,776.75,776.14,0.86626856]
[1754575243082,0.83421249,776.74,776.14,0.86626856]
[1754575243283,0.83421249,776.73,776.14,0.86626856]
[1754575243485,0.83421249,776.72,776.14,0.86626856]
[1754575243688,0.83421249,776.71,776.14,0.86626856]
[1754575243885,0.83421249,776.7,776.14,0.86626856]
[1754575244083,0.8662701,776.79,776.15,0.86626856]
[1754575244283,0.83418784,776.78,776.15,0.86626856]
[1754575244486,0.83418784,776.77,776.16,0.86626856]
[1754575244686,0.83418784,776.76,776.16,0.86626856]
[1754575244887,0.83418784,776.75,776.16,0.86626856]
[1754575245086,0.83418784,776.74,776.16,0.86626856]
[1754575245386,0.83418784,776.73,776.15,0.86626856]
[1754575245686,0.83418784,776.72,776.15,0.86626856]
[1754575245986,0.83418784,776.71,776.15,0.86626856]
[1754575246185,0.8662701,776.79,776.15,0.86626856]
[1754575246389,0.83418847,776.78,776.15,0.86626856]
[1754575246591,0.83418847,776.77,776.15,0.86626856]
[1754575246786,0.83418847,776.76,776.15,0.86626856]
[1754575246991,0.83418847,776.75,776.13,0.86626856]
[1754575247191,0.83418847,776.74,776.12,0.86626856]
[1754575247484,0.83418847,776.73,776.08,0.86626856]
[1754575247691,0.83418847,776.73,775.9,1.15042796]
[1754575247692,0.83418847,776.73,776.07,0.86626856]
[1754575248393,1.70045857,776.73,776.07,0.86626856]
[1754575248587,0.83418847,776.72,776.04,0.86626856]
[1754575248789,0.83418847,776.71,776.03,0.86626856]
[1754575248989,0.83418847,776.7,776.03,0.86626856]
[1754575249193,0.83418847,776.69,776.0,0.86626856]
[1754575249388,0.83418847,776.68,775.97,0.86626856]
[1754575249691,0.83418847,776.67,775.97,0.86626856]
[1754575249891,0.83418847,776.66,775.97,0.86626856]
[1754575250191,0.83418847,776.65,775.93,0.86626856]
[1754575250390,0.83418847,776.65,775.91,0.86626856]
[1754575250588,0.83418847,776.67,775.92,0.86626856]
[1754575250888,0.83451339,776.66,775.92,0.86626856]
[1754575251087,0.83451339,776.65,775.92,0.86626856]
[1754575251291,0.83451339,776.64,775.92,0.86626856]
[1754575251491,0.83451339,776.63,775.91,0.86626856]
[1754575251691,0.83451339,776.62,775.92,0.86626856]
[1754575251992,0.83451339,776.61,775.92,0.86626856]
[1754575252188,0.83451339,776.6,775.92,0.86626856]
[1754575252493,0.83451339,776.59,775.92,0.86626856]
[1754575252691,0.8662701,776.7,775.92,0.86626856]
[1754575252988,0.83418796,776.69,775.92,0.86626856]
[1754575253187,0.83418796,776.68,775.92,0.86626856]
[1754575253390,0.83418796,776.67,775.91,0.86626856]
[1754575253592,0.83418796,776.66,775.91,0.86626856]
[1754575253791,0.83418796,776.65,775.91,0.86626856]
[1754575254091,1.0,776.87,775.92,0.86626856]
[1754575254092,0.83418796,776.64,775.92,0.86626856]
[1754575254291,0.83418796,776.63,775.9,0.86626856]
[1754575254492,0.83418796,776.62,775.9,0.86626856]
[1754575254793,0.83418796,776.61,775.9,0.86626856]
[1754575254992,0.83418796,776.6,775.9,0.86626856]
[1754575255190,0.8662701,776.71,775.9,0.86626856]
[1754575255394,0.83375832,776.7,775.89,0.86626856]
[1754575255689,0.83375832,776.69,775.89,0.86626856]
[1754575255893,0.83375832,776.68,775.89,0.86626856]
[1754575256091,0.83375832,776.67,775.89,0.86626856]
[1754575256290,0.83375832,776.66,775.88,0.86626856]
[1754575256492,0.83375832,776.65,775.89,0.86626856]
[1754575256793,0.83375832,776.64,775.89,0.86626856]
[1754575256992,0.83375832,776.63,775.89,0.86626856]
[1754575257296,0.83375832,776.62,775.89,0.86626856]
[1754575257497,0.8662701,776.72,775.88,0.86626856]
[1754575257697,0.83358421,776.71,775.88,0.86626856]
[1754575257897,0.83358421,776.7,775.88,0.86626856]
[1754575258092,0.83358421,776.69,775.88,0.86626856]
[1754575258397,0.83358421,776.68,775.87,0.86626856]
[1754575258596,0.83358421,776.67,775.87,0.86626856]
[1754575258797,0.8662701,776.73,775.87,0.86626856]
[1754575258798,0.83358421,776.66,775.87,0.86626856]
[1754575258997,0.83358421,776.65,775.87,0.86626856]
[1754575259194,0.83358421,776.64,775.87,0.86626856]
[1754575259394,0.83358421,776.63,775.87,0.86626856]
[1754575259599,0.8662701,776.73,775.87,0.86626856]
[1754575260199,0.83337875,776.72,775.87,0.86626856]
[1754575260396,0.8662701,776.73,775.87,0.86626856]
[1754575260699,0.83338002,776.72,775.87,0.86626856]
[1754575260899,0.83338002,776.71,775.87,0.86626856]
[1754575261195,0.83338002,776.7,775.87,0.86626856]
[1754575261395,0.83338002,776.69,775.87,0.86626856]
[1754575261595,0.83338002,776.68,775.87,0.86626856]
[1754575261898,0.83338002,776.67,775.87,0.86626856]
[1754575262100,0.83338002,776.66,775.86,0.86626856]
[1754575262296,0.83338002,776.65,775.86,0.86626856]
[1754575262496,0.83338002,776.64,775.86,0.86626856]
[1754575262700,0.8662701,776.74,775.86,0.86626856]
[1754575262900,0.83327905,776.73,775.85,0.86626856]
[1754575263200,0.83327905,776.72,775.85,0.86626856]
[1754575263400,0.83327905,776.71,775.85,0.86626856]
[1754575263601,0.83327905,776.7,775.87,0.86551809]
[1754575263901,0.83327905,776.69,775.87,0.86551809]
[1754575264098,0.83327905,776.68,775.87,0.86551809]
[1754575264298,0.83327905,776.67,775.87,0.86551809]
[1754575264598,0.83327905,776.66,775.87,0.86551809]
[1754575264897,0.83327905,776.65,775.87,0.86551809]
[1754575265103,0.83327905,776.64,775.87,0.86551809]
[1754575265399,0.83327905,776.63,775.86,0.86551809]
[1754575265601,0.86501742,776.73,775.86,0.86551809]
[1754575265798,0.83304859,776.72,775.86,0.86551809]
[1754575266000,0.83304859,776.71,775.86,0.86551809]
[1754575266200,0.86501742,776.68,775.83,0.86551809]
[1754575266403,0.86501742,776.64,775.79,0.86551809]
[1754575266604,0.86501742,776.69,775.71,0.86551809]
[1754575266804,0.83301272,776.68,775.71,0.86551809]
[1754575267000,0.83301272,776.67,775.71,0.86551809]
[1754575267205,0.86501742,776.7,775.71,0.86551809]
[1754575267402,0.83299143,776.69,775.71,0.86551809]
[1754575267606,0.83299143,776.68,775.71,0.86551809]
[1754575267800,0.83299143,776.67,775.71,0.86551809]
[1754575268005,0.86501742,776.7,775.71,0.86551809]
[1754575268201,0.83297622,776.69,775.7,0.86551809]
[1754575268500,0.83297622,776.68,775.7,0.86551809]
[1754575268704,0.83297622,776.67,775.7,0.86551809]
[1754575268904,0.83297622,776.66,775.7,0.86551809]
[1754575269102,0.83297622,776.65,775.7,0.86551809]
[1754575269305,0.83297622,776.64,775.7,0.86551809]
[1754575269505,0.83297622,776.63,775.69,0.86551809]
[1754575269706,0.83297622,776.62,775.69,0.86551809]
[1754575270001,0.83297622,776.61,775.69,0.86551809]
[1754575270205,0.83297622,776.6,775.69,0.86551809]
[1754575270401,0.83297622,776.59,775.69,0.86551809]
[1754575270605,0.83297622,776.58,775.69,0.86551809]
[1754575270803,0.83297622,776.57,775.69,0.86551809]
[1754575271105,0.86501742,776.71,775.69,0.86551809]
[1754575271303,0.83267687,776.7,775.69,0.86551809]
[1754575271606,0.83267687,776.69,775.71,0.86551809]
[1754575271802,0.83267687,776.68,775.71,0.86551809]
[1754575272106,0.83267687,776.67,775.71,0.86551809]
[1754575272304,0.83267687,776.66,775.71,0.86551809]
[1754575272507,0.83267687,776.65,775.71,0.86551809]
[1754575272708,0.83267687,776.64,775.71,0.86551809]
[1754575272908,0.83267786,776.63,775.71,0.86551809]
[1754575273108,0.83267786,776.62,775.71,0.86551809]
[1754575273306,0.83267786,776.61,775.71,0.86551809]
[1754575273609,0.83267786,776.61,775.49,1.15042796]
[1754575273610,0.83265493,776.6,775.69,0.86551809]
[1754575273805,0.83265493,776.59,775.62,0.86551809]
[1754575274010,0.83265493,776.58,775.61,0.86551809]
[1754575274205,0.83265493,776.57,775.6,0.86551809]
[1754575274407,0.83265493,776.56,775.62,0.86551809]
[1754575274606,0.83265493,776.55,775.62,0.86551809]
[1754575274806,0.83265493,776.54,775.61,0.86551809]
[1754575275010,0.83265493,776.53,775.61,0.86551809]
[1754575275210,0.83265493,776.52,775.6,0.86551809]
[1754575275414,0.83265493,776.51,775.69,0.22416758]
[1754575275615,0.83265493,776.5,775.69,0.22416758]
[1754575275816,0.83265493,776.49,775.69,0.22416758]
[1754575276016,0.83265493,776.48,775.69,0.22416758]
[1754575276217,0.83265493,776.47,775.69,0.22416758]
[1754575276513,0.86501742,776.62,775.69,0.22416758]
[1754575276713,0.83218082,776.61,775.69,0.22416758]
[1754575276913,0.83218082,776.6,775.69,0.22416758]
[1754575277116,0.83218082,776.59,775.69,0.22416758]
[1754575277517,0.83248331,776.58,775.69,0.22416758]
[1754575277717,0.83248331,776.57,775.69,0.22416758]
[1754575278017,0.83248331,776.56,775.69,0.22416758]
[1754575278317,0.83248331,776.55,775.69,0.22416758]
[1754575278516,0.887,776.77,775.69,0.22416758]
[1754575278517,0.83248331,776.54,775.69,0.22416758]
[1754575278717,0.83248331,776.53,775.69,0.22416758]
[1754575278918,0.83248331,776.52,775.69,0.22416758]
[1754575279115,0.83248331,776.51,775.69,0.22416758]
[1754575279314,0.83248331,776.5,775.69,0.22416758]
[1754575279513,0.83248331,776.49,775.69,0.22416758]
[1754575279812,0.83248331,776.48,775.69,0.22416758]
[1754575280016,0.83248331,776.47,775.69,0.22416758]
[1754575280216,0.83248331,776.46,775.58,0.86551809]
[1754575280412,0.86501742,776.61,775.58,0.86551809]
[1754575280614,0.83228232,776.6,775.58,0.86551809]
[1754575280816,0.83228232,776.59,775.58,0.86551809]
[1754575281017,0.83228232,776.58,775.58,0.86551809]
[1754575281212,0.83228232,776.57,775.58,0.86551809]
[1754575281517,0.83228232,776.56,775.58,0.86551809]
[1754575281814,0.83228232,776.55,775.58,0.86551809]
[1754575282017,0.83228232,776.54,775.58,0.86551809]
[1754575282214,0.83228232,776.53,775.58,0.86551809]
[1754575282518,0.83228232,776.52,775.58,0.86551809]
[1754575282717,0.83228232,776.51,775.58,0.86551809]
[1754575282917,0.83228232,776.5,775.58,0.86551809]
[1754575283118,0.83228232,776.49,775.58,0.86551809]
[1754575283317,0.83228232,776.48,775.58,0.86551809]
[1754575283517,0.83228232,776.47,775.58,0.86551809]
[1754575283717,0.83228232,776.46,775.58,0.86551809]
[1754575283915,0.8321934,776.45,775.58,0.86551809]
[1754575284117,0.8321934,776.44,775.61,0.86551809]
[1754575284320,0.86501742,776.57,775.61,0.86551809]
[1754575284521,0.83226141,776.56,775.61,0.86551809]
[1754575284716,0.83226141,776.55,775.61,0.86551809]
[1754575284920,0.83226141,776.54,775.61,0.86551809]
[1754575285120,0.83226141,776.53,775.6,0.86551809]
[1754575285321,0.83226141,776.52,775.61,0.86551809]
[1754575285518,0.83226141,776.51,775.61,0.86551809]
[1754575285820,0.83226141,776.5,775.61,0.86551809]
[1754575286021,0.83226141,776.49,775.6,0.86551809]
[1754575286218,0.83226141,776.48,775.6,0.86551809]
[1754575286520,0.83185279,776.47,775.6,0.86551809]
[1754575286720,0.83185279,776.46,775.58,0.86551809]
[1754575286917,0.83185279,776.45,775.51,0.86551809]
[1754575287221,0.83185279,776.44,775.46,0.86551809]
[1754575287520,0.83185279,776.43,775.46,0.86551809]
[1754575287816,0.83185279,776.42,775.46,0.86551809]
[1754575288119,0.83185279,776.41,775.45,0.86551809]
[1754575288317,0.83185279,776.4,775.45,0.86551809]
[1754575288520,0.83185279,776.39,775.45,0.86551809]
[1754575288716,0.86501742,776.58,775.45,0.86551809]
[1754575288923,0.83150343,776.57,775.45,0.86551809]
[1754575289116,0.83150343,776.56,775.45,0.86551809]
[1754575289421,0.86501742,776.58,775.45,0.86551809]
[1754575289622,0.83132383,776.57,775.45,0.86551809]
[1754575289818,0.83132383,776.56,775.45,0.86551809]
[1754575290123,0.86501742,776.58,775.45,0.86551809]
[1754575290124,0.83132383,776.55,775.45,0.86551809]
[1754575290317,1.90632383,776.54,775.45,0.86551809]
[1754575290517,0.83132383,776.53,775.45,0.86551809]
[1754575290718,0.83132383,776.52,775.45,0.86551809]
[1754575290921,0.83132383,776.51,775.45,0.86551809]
[1754575291221,0.83132383,776.5,775.56,0.22419936]
[1754575291521,0.83132383,776.49,775.56,0.22419936]
[1754575291821,0.83132383,776.48,775.56,0.22419936]
[1754575292118,0.83132383,776.47,775.56,0.22419936]
[1754575292322,0.83132383,776.46,775.56,0.22419936]
[1754575292517,0.83132383,776.45,775.56,0.22419936]
[1754575292818,0.83132383,776.44,775.56,0.22419936]
[1754575293021,0.83132383,776.43,775.56,0.22419936]
[1754575293218,0.83097138,776.42,775.56,0.22419936]
[1754575293522,0.83097138,776.41,775.56,0.22419936]
[1754575293721,1.075,776.54,775.56,0.22419936]
[1754575293920,0.83097138,776.53,775.56,0.22419936]
[1754575294123,0.83097138,776.52,775.56,0.22419936]
[1754575294323,0.83097138,776.51,775.56,0.22419936]
[1754575294527,0.83097138,776.5,775.56,0.22419936]
[1754575294722,0.83097138,776.49,775.56,0.22419936]
[1754575294920,0.83097138,776.48,775.56,0.22419936]
[1754575295125,0.83097138,776.47,775.56,0.22419936]
[1754575295421,0.83097138,776.46,775.56,0.22419936]
[1754575295725,0.83091814,776.45,775.56,0.22419936]
[1754575295925,0.83091814,776.44,775.56,0.22419936]
[1754575296122,0.83091814,776.43,775.56,0.22419936]
[1754575296324,0.83094562,776.42,775.56,0.22419936]
[1754575296525,0.83094562,776.41,775.56,0.22419936]
[1754575296722,0.83094562,776.4,775.56,0.22419936]
[1754575297022,0.83094562,776.39,775.56,0.22419936]
[1754575297228,1.075,776.54,775.56,0.22419936]
[1754575297422,0.8309863,776.53,775.56,0.22419936]
[1754575297625,1.075,776.54,775.56,0.22419936]
[1754575297626,0.8309863,776.52,775.56,0.22419936]
[1754575297826,0.8309863,776.51,775.56,0.22419936]
[1754575298122,0.8309863,776.5,775.56,0.22419936]
[1754575298325,0.8309863,776.49,775.56,0.22419936]
[1754575298523,0.8309863,776.48,775.56,0.22419936]
[1754575298722,0.8309863,776.47,775.56,0.22419936]
[1754575298927,0.8309863,776.46,775.56,0.22419936]
[1754575299126,0.8309863,776.45,775.56,0.22419936]
[1754575299327,0.8309863,776.44,775.56,0.22419936]
[1754575299523,0.8309863,776.43,775.56,0.22419936]
[1754575299723,0.8309863,776.42,775.56,0.22419936]
[1754575299929,0.8309863,776.41,775.56,0.22419936]
[1754575300229,0.8309863,776.4,775.56,0.22419936]
[1754575300429,0.8309863,776.39,775.56,0.22419936]
[1754575300629,1.94001742,776.54,775.56,0.22419936]
[1754575300923,0.83120496,776.53,775.56,0.22419936]
[1754575301224,0.83120496,776.52,775.56,0.22419936]
[1754575301428,0.83120496,776.51,775.56,0.22419936]
[1754575301728,0.83129224,776.5,775.56,0.22419936]
[1754575301924,0.83129224,776.49,775.56,0.22419936]
[1754575302125,0.83129224,776.48,775.56,0.22419936]
[1754575302329,0.83129224,776.47,775.56,0.22419936]
[1754575302528,0.83129224,776.46,775.56,0.22419936]
[1754575302829,0.83129224,776.45,775.56,0.22419936]
[1754575303025,0.83129224,776.44,775.56,0.22419936]
[1754575303229,0.83129224,776.43,775.56,0.22419936]
[1754575303428,0.83129224,776.42,775.56,0.22419936]
[1754575303730,0.83129224,776.41,775.56,0.22419936]
[1754575303931,0.83129224,776.4,775.56,0.22419936]
[1754575304233,0.83129224,776.39,775.56,0.22419936]
[1754575304431,0.83129224,776.38,775.56,0.22419936]
[1754575304627,0.86501742,776.52,775.56,0.22419936]
[1754575304828,0.83141293,776.51,775.56,0.22419936]
[1754575305134,0.83141293,776.5,775.56,0.22419936]
[1754575305328,0.83141293,776.49,775.56,0.22419936]
[1754575305532,0.83141293,776.48,775.56,0.22419936]
[1754575305727,0.83141293,776.47,775.56,0.22419936]
[1754575305929,1.69643035,776.46,775.56,1.08971745]
[1754575306128,0.83141293,776.45,775.56,1.08971745]
[1754575306332,1.69643035,776.45,775.57,0.86551809]
[1754575306631,0.83141293,776.44,775.57,0.86551809]
[1754575307432,1.69643035,776.44,775.57,0.86551809]
[1754575307633,0.83141293,776.43,775.57,0.86551809]
[1754575308229,0.83141293,776.42,775.57,0.86551809]
[1754575308433,0.83141293,776.41,775.58,0.86551809]
[1754575308630,0.83141293,776.4,775.58,0.86551809]
[1754575308835,0.83141293,776.39,775.58,0.86551809]
[1754575309034,0.83141293,776.38,775.58,0.86551809]
[1754575309234,1.075,776.54,775.56,0.22419936]
[1754575309235,0.83141293,776.37,775.59,0.86551809]
[1754575309431,0.83141293,776.36,775.59,0.86551809]
[1754575309734,0.83141293,776.35,775.59,0.86551809]
[1754575309935,0.83141293,776.34,775.59,0.86551809]
[1754575310235,0.86501742,776.42,775.59,0.86551809]
[1754575310430,0.83212164,776.41,775.59,0.86551809]
[1754575310635,0.83212164,776.4,775.58,0.86551809]
[1754575310830,0.83212164,776.39,775.59,0.86551809]
[1754575311136,0.83212164,776.38,775.58,0.86551809]
[1754575311431,0.86501742,776.27,775.43,1.0897355]
[1754575311636,0.83212164,776.26,775.43,1.0897355]
[1754575311937,1.69713906,776.25,775.45,0.86551809]
[1754575312138,0.83212164,776.24,775.44,0.86551809]
[1754575312336,0.83212164,776.23,775.44,0.86551809]
[1754575312632,0.83212164,776.22,775.44,0.86551809]
[1754575312833,0.83212164,776.21,775.44,0.86551809]
[1754575313137,0.83212164,776.2,775.44,0.86551809]
[1754575313334,0.86501742,776.35,775.43,0.22421741]
[1754575313538,0.83184191,776.34,775.43,0.22421741]
[1754575313736,0.86501742,776.51,775.43,0.22421741]
[1754575314237,0.83191853,776.5,775.43,0.22421741]
[1754575314441,1.69693595,776.49,775.43,0.22421741]
[1754575314637,0.86501742,776.41,775.48,0.86551809]
[1754575314836,0.83191853,776.4,775.52,0.86551809]
[1754575315138,1.69693595,776.39,775.56,0.86551809]
[1754575315337,0.83191853,776.38,775.56,0.86551809]
[1754575316236,1.69693595,776.38,775.56,0.86551809]
[1754575316437,0.83191853,776.37,775.56,0.86551809]
[1754575316739,0.83191853,776.36,775.56,0.86551809]
[1754575316938,0.83191853,776.35,775.56,0.86551809]
[1754575317139,0.83191853,776.34,775.56,0.86551809]
[1754575317336,0.83191853,776.33,775.57,0.86551809]
[1754575317639,0.83191853,776.32,775.57,0.86551809]
[1754575317842,0.83191853,776.31,775.57,0.86551809]
[1754575318037,0.86501742,776.39,775.57,0.86551809]
[1754575318242,0.83214693,776.38,775.57,0.86551809]
[1754575318541,0.83214693,776.37,775.57,0.86551809]
[1754575318741,0.83214693,776.36,775.57,0.86551809]
[1754575319041,0.83214693,776.35,775.57,0.86551809]
[1754575319238,0.83214693,776.34,775.56,0.86551809]
[1754575319437,0.83214693,776.33,775.57,0.86551809]
[1754575319642,0.83214693,776.32,775.57,0.86551809]
[1754575319941,0.86501742,776.39,775.57,0.86551809]
[1754575320143,0.83218584,776.38,775.57,0.86551809]
[1754575320342,0.83218584,776.37,775.57,0.86551809]
[1754575320543,0.83218584,776.36,775.57,0.86551809]
[1754575320740,0.83218584,776.35,775.54,0.86551809]
[1754575320942,0.83218584,776.34,775.54,0.86551809]
[1754575321243,0.83218584,776.33,775.53,0.86551809]
[1754575321441,0.863,776.4,775.43,0.22421741]
[1754575321442,0.86501742,776.31,775.5,0.86551809]
[1754575321644,1.69720326,776.3,775.5,0.86551809]
[1754575321838,0.83218584,776.29,775.5,0.86551809]
[1754575322051,0.83218584,776.28,775.5,0.86551809]
[1754575322350,0.83224908,776.27,775.51,0.86551809]
[1754575322552,0.83224908,776.26,775.5,0.86551809]
[1754575322753,0.83224908,776.25,775.5,0.86551809]
[1754575322954,0.83224908,776.24,775.5,0.86551809]
[1754575323150,0.83224908,776.23,775.5,0.86551809]
[1754575323353,0.86501742,776.29,775.51,0.86551809]
[1754575323551,0.83228419,776.28,775.51,0.86551809]
[1754575323754,0.83228419,776.27,775.5,0.86551809]
[1754575324054,0.83228419,776.26,775.5,0.86551809]
[1754575324354,0.83228419,776.25,775.5,0.86551809]
[1754575324550,0.83228419,776.24,775.51,0.86551809]
[1754575324851,0.83228419,776.23,775.51,0.86551809]
[1754575325051,0.86501742,776.34,775.51,0.86551809]
[1754575325251,0.86501742,776.29,775.44,0.86551809]
[1754575325451,0.83231969,776.28,775.44,0.86551809]